fUST/lending_fUST_20240927
["ID","MTS","AMOUNT","RATE_DAILY","PERIOD"]
[339257771,1727409056113,-158.67238847,0.0002192,7]
[339257772,1727409056125,-158.67238847,0.0002192,7]
[339257773,1727409056134,-159.17,0.0002192,7]
[339257774,1727409056144,-151.0,0.00021941,2]
[339257775,1727409056153,-5000.0,0.00021969,3]
[339257776,1727409056163,-360.0,0.0002197,2]
[339257777,1727409056172,-213.9363598,0.00021973,2]
[339257778,1727409056181,-153.0000001,0.00021973,2]
[339257779,1727409056191,-2011.92441771,0.00022,2]
[339257780,1727409056203,-2000.0,0.00022,3]
[339257781,1727409056213,-6232.92181032,0.00022,30]
[339257782,1727409056223,-1314.52035826,0.00022,2]
[339257783,1727409056232,-2000.0,0.00022,2]
[339257784,1727409056241,-500.0,0.00022,30]
[339257785,1727409056252,-500.0,0.00022,30]
[339257786,1727409056261,-510.6317987,0.00022,30]
[339257787,1727409056270,-231.032917,0.00022,7]
[339257788,1727409056279,-231.032921,0.00022,7]
[339257789,1727409056290,-300.133,0.00022,2]
[339257790,1727409056299,-3212.243,0.00022,2]
[339257791,1727409056309,-953.05458915,0.0002201,16]
[339257792,1727409056326,-562.98829314,0.0002201,16]
[339257793,1727409056337,-1207.47108392,0.0002201,16]
[339257794,1727409056388,-2132.99722313,0.0002201,16]
[339257796,1727409082687,529.04,0.00014111,2]
[339257797,1727409093928,1530.34,0.00021,120]
[339257802,1727409352009,-300.0,0.0001764,2]
[339257803,1727409352033,-300.0,0.0001764,2]
[339257804,1727409352059,-500.0,0.00017641,2]
[339257805,1727409352083,-500.0,0.00017641,2]
[339257806,1727409352107,-472.58327322,0.00017641,2]
[339257807,1727409352132,-500.0,0.00017641,2]
[339257808,1727409352156,-500.0,0.00017641,2]
[339257809,1727409352180,-500.0,0.00017641,2]
[339257810,1727409352206,-500.0,0.00017641,2]
[339257811,1727409352230,-2510.63672678,0.00017642,2]
[339257812,1727409398585,-282.9685906,0.00017004,2]
[339257813,1727409398608,-317.0314094,0.00017159,2]
[339257816,1727409978506,-500.0,0.00021,30]
[339257817,1727409978527,-891.82928336,0.00021,30]
[339257818,1727409978549,-151.99993879,0.00021,30]
[339257819,1727409978571,-456.17077785,0.00021,30]
[339257820,1727409978654,-153.38,0.000219,31]
[339257821,1727409978679,-153.38,0.000219,31]
[339257822,1727409978705,-153.38,0.000219,31]
[339257823,1727409978729,-153.38,0.000219,31]
[339257824,1727409978752,-153.38,0.000219,31]
[339257825,1727409978776,-153.38,0.000219,31]
[339257826,1727409978800,-153.38,0.000219,31]
[339257827,1727409978823,-153.38,0.000219,31]
[339257828,1727409978846,-153.38,0.000219,31]
[339257829,1727409978869,-75.75077785,0.000219,31]
[339257830,1727410029303,-984.49344503,0.00015856,2]
[339257831,1727410031240,-1072.18025475,0.00015856,2]
[339257832,1727410033121,-819.22575464,0.00015856,2]
[339257833,1727410038105,-4132.15312478,0.00015856,2]
[339257834,1727410038126,-509.0831859,0.00015909,2]
[339257835,1727410038147,-203.085971,0.00016006,2]
[339257836,1727410038169,-300.0,0.00016277,2]
[339257837,1727410038190,-300.0,0.00016277,2]
[339257838,1727410038213,-500.0,0.00016278,2]
[339257839,1727410038236,-321.23757002,0.00016278,2]
[339257840,1727410038259,-500.0,0.00016278,2]
[339257841,1727410038281,-500.0,0.00016278,2]
[339257842,1727410038305,-500.0,0.00016278,2]
[339257843,1727410038326,-500.0,0.00016278,2]
[339257844,1727410038347,-500.0,0.00016278,2]
[339257845,1727410038369,-1933.24873164,0.00016279,2]
[339257846,1727410048202,-1649.98686249,0.00016279,2]
[339257847,1727410052099,-18087.52952564,0.00016279,2]
[339257864,1727410146141,-3229.23488023,0.00016279,2]
[339257865,1727410146164,-1052.446239,0.00016797,2]
[339257866,1727410146186,-250.0,0.00016815,2]
[339257867,1727410146208,-250.0,0.00016861,2]
[339257868,1727410146230,-250.0,0.00016908,2]
[339257869,1727410146250,-250.0,0.00016954,2]
[339257870,1727410146271,-250.0,0.00017,2]
[339257871,1727410146292,-250.0,0.00017046,2]
[339257872,1727410146313,-250.0,0.00017092,2]
[339257873,1727410146333,-254.95504354,0.00017108,2]
[339257874,1727410146354,-250.0,0.00017138,2]
[339257875,1727410146375,-250.0,0.00017184,2]
[339257876,1727410146397,-250.0,0.0001723,2]
[339257877,1727410146417,-250.0,0.00017276,2]
[339257878,1727410146438,-200.20976461,0.00017323,2]
[339257882,1727410157145,-49.79023539,0.00017323,2]
[339257883,1727410157167,-250.0,0.00017369,2]
[339257884,1727410157189,-250.0,0.00017415,2]
[339257885,1727410160102,-250.0,0.00017461,2]
[339257886,1727410160123,-300.0,0.0001748,2]
[339257887,1727410160144,-300.0,0.00017481,2]
[339257888,1727410160167,-1041.28657977,0.00017482,2]
[339257889,1727410162123,-11.15965923,0.00017482,2]
[339257890,1727410162146,-250.0,0.00017507,2]
[339257891,1727410169096,-219.84140618,0.00017553,2]
[339257920,1727410232055,-1012.919249,0.00017579,2]
[339257922,1727410232065,-1000.0,0.00017601,2]
[339257924,1727410232074,-692.17715207,0.00017601,2]
[339257926,1727410232085,-206.925197,0.00017681,2]
[339257928,1727410232097,-206.925197,0.0001773,2]
[339257931,1727410232109,-206.925197,0.00017778,2]
[339257933,1727410232118,-206.925197,0.00017827,2]
[339257935,1727410232128,-206.925197,0.00017875,2]
[339257937,1727410232138,-206.925197,0.00017924,2]
[339257939,1727410232149,-206.925197,0.00017972,2]
[339257941,1727410232159,-206.925197,0.00018021,2]
[339257943,1727410232169,-206.925197,0.00018069,2]
[339257945,1727410232180,-206.925197,0.00018118,2]
[339257948,1727410232190,-306.1387111,0.00018154,2]
[339257958,1727410232279,-183.33187361,0.00018154,2]
[339257993,1727410232746,1767.96010058,0.00017479,2]
[339258012,1727410240007,-1543.83405016,0.00017479,2]
[339258016,1727410240221,-30872.9854407,0.00017479,2]
[339258017,1727410240231,-10.52941529,0.00018154,2]
[339258018,1727410240241,-206.925197,0.00018166,2]
[339258019,1727410240250,-206.925197,0.00018215,2]
[339258020,1727410240260,-206.925197,0.00018263,2]
[339258021,1727410240269,-1012.919249,0.00018264,2]
[339258022,1727410240278,-206.925197,0.00018312,2]
[339258023,1727410240287,-530.30609212,0.00018355,2]
[339258024,1727410240296,-206.925197,0.0001836,2]
[339258025,1727410240305,-206.925197,0.00018409,2]
[339258026,1727410240314,-206.925197,0.00018457,2]
[339258027,1727410240323,-206.925197,0.00018506,2]
[339258028,1727410240332,-206.925197,0.00018554,2]
[339258029,1727410240341,-206.925197,0.00018603,2]
[339258030,1727410240351,-167.242773,0.00018904,2]
[339258031,1727410240360,-1012.919249,0.00018949,2]
[339258032,1727410240369,-227.27758389,0.00018958,2]
[339258033,1727410240380,-300.0,0.00019064,2]
[339258034,1727410240392,-300.0,0.00019064,2]
[339258035,1727410240401,-3200.38730641,0.00019065,2]
[339258036,1727410240485,-3599.47332177,0.00019065,2]
[339258037,1727410240494,-500.0,0.00019073,2]
[339258038,1727410240504,-1974.79148896,0.00019078,2]
[339258039,1727410240514,-3848.0,0.00019078,2]
[339258040,1727410240524,-156.72,0.00019158,3]
[339258041,1727410240534,-470.17,0.00019158,3]
[339258042,1727410240543,-500.0,0.00019167,2]
[339258043,1727410240553,-303.79353997,0.00019167,2]
[339258044,1727410240563,-201.08487203,0.00019167,2]
[339258045,1727410240572,-500.0,0.00019167,2]
[339258046,1727410240581,-235.12870975,0.00019167,2]
[339258047,1727410240590,-500.0,0.00019167,2]
[339258048,1727410240599,-368.32381955,0.00019167,2]
[339258049,1727410240609,-500.0,0.00019167,2]
[339258050,1727410240619,-369.02639667,0.00019167,2]
[339258051,1727410240633,-95943.2155532,0.00019168,3]
[339258052,1727410240642,-49364.9866963,0.00019168,3]
[339258053,1727410240651,-500.0,0.00019173,2]
[339258054,1727410240660,-500.0,0.00019178,2]
[339258055,1727410240669,-500.0,0.00019178,2]
[339258056,1727410240678,-594.32,0.00019178,2]
[339258057,1727410240687,-1084.96,0.00019178,2]
[339258058,1727410240696,-500.0,0.00019178,2]
[339258059,1727410240705,-1255.74,0.00019178,2]
[339258060,1727410240715,-560.47,0.00019178,2]
[339258061,1727410240725,-1060.62,0.00019178,2]
[339258062,1727410240738,-500.0,0.00019178,2]
[339258063,1727410240751,-500.0,0.00019178,2]
[339258064,1727410240760,-500.0,0.00019178,2]
[339258065,1727410240771,-1000.0,0.00019178,2]
[339258066,1727410240781,-500.0,0.00019178,2]
[339258067,1727410240791,-506.95147039,0.00019178,2]
[339258068,1727410240801,-1925.98,0.00019178,2]
[339258069,1727410240814,-200.0,0.00019178,2]
[339258070,1727410240826,-500.0,0.00019178,2]
[339258071,1727410240836,-1518.25,0.00019178,2]
[339258072,1727410240847,-500.0,0.00019178,2]
[339258073,1727410240856,-225.28399239,0.00019178,2]
[339258074,1727410240866,-506.21437589,0.00019178,2]
[339258075,1727410240876,-505.99498372,0.00019178,2]
[339258076,1727410240889,-502.9036482,0.00019178,2]
[339258077,1727410240898,-509.43865599,0.00019178,2]
[339258078,1727410240908,-505.93331144,0.00019178,2]
[339258079,1727410240918,-291.00638307,0.00019178,2]
[339258080,1727410240928,-505.23754177,0.00019178,2]
[339258081,1727410240938,-501.88949167,0.00019178,2]
[339258082,1727410240948,-500.51837239,0.00019178,2]
[339258083,1727410240958,-512.39467647,0.00019178,2]
[339258084,1727410240967,-505.7320297,0.00019178,2]
[339258085,1727410240976,-503.3907375,0.00019178,2]
[339258086,1727410240986,-500.0,0.00019178,2]
[339258087,1727410240995,-392.81129836,0.00019178,2]
[339258088,1727410241005,-505.41382347,0.00019178,2]
[339258089,1727410241014,-500.0,0.00019178,2]
[339258090,1727410241023,-509.23544365,0.00019178,2]
[339258091,1727410241032,-507.78287653,0.00019178,2]
[339258092,1727410241041,-500.0,0.00019178,2]
[339258093,1727410241050,-512.31501893,0.00019178,2]
[339258094,1727410241059,-502.4963223,0.00019178,2]
[339258095,1727410241071,-507.33275191,0.00019178,2]
[339258096,1727410241081,-588.54975964,0.00019178,2]
[339258097,1727410241091,-500.0,0.00019178,2]
[339258098,1727410241102,-501.30810882,0.00019178,2]
[339258099,1727410241112,-505.49420138,0.00019178,2]
[339258100,1727410241121,-500.0,0.00019178,2]
[339258101,1727410241132,-504.13947938,0.00019178,2]
[339258102,1727410241143,-513.28998254,0.00019178,2]
[339258103,1727410241153,-500.0,0.00019178,2]
[339258104,1727410241163,-517.43819269,0.00019178,2]
[339258105,1727410241173,-506.75607573,0.00019178,2]
[339258106,1727410241184,-509.13465812,0.00019178,2]
[339258107,1727410241194,-500.0,0.00019178,2]
[339258108,1727410241204,-2151.0,0.00019178,2]
[339258109,1727410241214,-500.0,0.00019178,2]
[339258110,1727410241224,-526.00384797,0.00019178,2]
[339258111,1727410241235,-500.0,0.00019178,2]
[339258112,1727410241246,-500.0,0.00019178,2]
[339258113,1727410241255,-500.0,0.00019178,2]
[339258114,1727410241264,-544.16,0.00019178,2]
[339258115,1727410241274,-501.03131705,0.00019178,2]
[339258116,1727410241283,-561.20569069,0.00019178,2]
[339258117,1727410241292,-500.0,0.00019178,2]
[339258118,1727410241301,-503.82682857,0.00019178,2]
[339258119,1727410241310,-500.0,0.00019178,2]
[339258120,1727410241319,-500.0,0.00019178,2]
[339258121,1727410241328,-500.0,0.00019178,2]
[339258122,1727410241336,-754.43,0.00019178,2]
[339258123,1727410241345,-263.9944114,0.00019178,2]
[339258124,1727410241354,-19089.96,0.00019178,2]
[339258125,1727410241363,-500.0,0.00019178,2]
[339258126,1727410241372,-500.0,0.00019178,2]
[339258127,1727410241383,-3668.5,0.00019178,2]
[339258128,1727410241392,-500.0,0.00019178,2]
[339258129,1727410241401,-500.0,0.00019178,2]
[339258130,1727410241411,-500.0,0.00019178,2]
[339258131,1727410241420,-302.08497231,0.00019178,2]
[339258132,1727410241429,-191.768512,0.00019178,2]
[339258133,1727410241438,-373.8707818,0.00019178,2]
[339258134,1727410241447,-47971.6077766,0.00019442,3]
[339258135,1727410241456,-24682.4933482,0.00019442,3]
[339258137,1727410241465,-500.0,0.00019452,2]
[339258138,1727410241474,-500.0,0.00019452,2]
[339258139,1727410241483,-594.32,0.00019452,2]
[339258140,1727410241492,-1084.96,0.00019452,2]
[339258141,1727410241500,-500.0,0.00019452,2]
[339258142,1727410241509,-1255.74,0.00019452,2]
[339258143,1727410241518,-560.47,0.00019452,2]
[339258144,1727410241527,-1060.62,0.00019452,2]
[339258145,1727410241536,-500.0,0.00019452,2]
[339258146,1727410241545,-500.0,0.00019452,2]
[339258147,1727410241554,-500.0,0.00019452,2]
[339258148,1727410241563,-1000.0,0.00019452,2]
[339258149,1727410241669,-500.0,0.00019452,2]
[339258150,1727410241681,-1925.98,0.00019452,2]
[339258151,1727410241691,-200.0,0.00019452,2]
[339258152,1727410241700,-500.0,0.00019452,2]
[339258153,1727410241710,-1518.25,0.00019452,2]
[339258154,1727410241719,-500.0,0.00019452,2]
[339258155,1727410241727,-500.0,0.00019452,2]
[339258156,1727410241736,-251.7110779,0.00019452,2]
[339258157,1727410241745,-2151.0,0.00019452,2]
[339258158,1727410241754,-500.0,0.00019452,2]
[339258159,1727410241762,-500.0,0.00019452,2]
[339258160,1727410241774,-516.95284124,0.00019452,2]
[339258161,1727410241783,-544.16,0.00019452,2]
[339258162,1727410241792,-514.01516408,0.00019452,2]
[339258163,1727410241803,-754.43,0.00019452,2]
[339258164,1727410241812,-19089.96,0.00019452,2]
[339258165,1727410241823,-3668.5,0.00019452,2]
[339258166,1727410241833,-500.5314839,0.00019452,2]
[339258167,1727410241843,-579.09297161,0.00019452,2]
[339258168,1727410241855,-150.112233,0.000195,2]
[339258169,1727410241865,-47971.6077766,0.00019606,3]
[339258170,1727410241876,-24682.4933482,0.00019606,3]
[339258171,1727410241887,-51224.64613202,0.00019616,2]
[339258172,1727410241898,-47971.6077766,0.00019706,3]
[339258173,1727410241907,-9309.49838147,0.00019706,3]
[339258174,1727410242627,-15372.99496673,0.00019706,3]
[339258175,1727410242637,-500.0,0.00019721,2]
[339258176,1727410242647,-500.0,0.00019726,2]
[339258177,1727410242656,-227.93339661,0.00019726,2]
[339258178,1727410242665,-594.32,0.00019726,2]
[339258179,1727410242674,-1084.96,0.00019726,2]
[339258180,1727410242684,-181.95433877,0.00019726,2]
[339258181,1727410242694,-1255.74,0.00019726,2]
[339258182,1727410242703,-560.47,0.00019726,2]
[339258183,1727410242713,-1060.62,0.00019726,2]
[339258184,1727410242722,-572.12605362,0.00019726,2]
[339258185,1727410242733,-233.94,0.00019726,2]
[339258186,1727410242742,-500.0,0.00019726,2]
[339258187,1727410242751,-1000.0,0.00019726,2]
[339258188,1727410242760,-500.0,0.00019726,2]
[339258189,1727410242771,-1925.98,0.00019726,2]
[339258190,1727410242781,-200.0,0.00019726,2]
[339258191,1727410242790,-500.0,0.00019726,2]
[339258192,1727410242800,-1518.25,0.00019726,2]
[339258193,1727410242809,-500.0,0.00019726,2]
[339258194,1727410242819,-500.0,0.00019726,2]
[339258195,1727410242828,-2151.0,0.00019726,2]
[339258196,1727410242837,-500.0,0.00019726,2]
[339258197,1727410242847,-544.16,0.00019726,2]
[339258198,1727410242856,-754.43,0.00019726,2]
[339258199,1727410242866,-19089.96,0.00019726,2]
[339258200,1727410242875,-3668.5,0.00019726,2]
[339258201,1727410242885,-1466.18298167,0.00019768,10]
[339258202,1727410242894,-678.76721695,0.00019866,2]
[339258203,1727410242903,-2729.98071477,0.0001988,2]
[339258204,1727410242912,-47971.6077766,0.0001998,3]
[339258205,1727410242921,-24682.4933482,0.0001998,3]
[339258206,1727410242930,-24682.4933482,0.0001999,3]
[339258207,1727410242940,-150.112233,0.0002,2]
[339258208,1727410242949,-500.0,0.0002,2]
[339258210,1727410242958,-594.32,0.0002,2]
[339258211,1727410242967,-1084.96,0.0002,2]
[339258212,1727410242976,-1255.74,0.0002,2]
[339258213,1727410242986,-560.47,0.0002,2]
[339258214,1727410242995,-1060.62,0.0002,2]
[339258215,1727410243004,-466.81469278,0.0002,2]
[339258217,1727410243014,-500.0,0.0002,2]
[339258218,1727410243023,-1925.98,0.0002,2]
[339258219,1727410243032,-200.0,0.0002,2]
[339258220,1727410243041,-500.0,0.0002,2]
[339258221,1727410243050,-1518.25,0.0002,2]
[339258222,1727410243060,-500.0,0.0002,2]
[339258224,1727410243069,-500.0,0.0002,2]
[339258225,1727410243078,-2151.0,0.0002,2]
[339258226,1727410243087,-541.25309905,0.0002,2]
[339258227,1727410243096,-544.16,0.0002,2]
[339258228,1727410243106,-754.43,0.0002,2]
[339258229,1727410243115,-19089.96,0.0002,2]
[339258230,1727410243124,-3668.5,0.0002,2]
[339258231,1727410243135,-526.0,0.00020044,2]
[339258232,1727410243143,-526.0,0.00020044,2]
[339258233,1727410243153,-526.0,0.00020044,2]
[339258234,1727410243162,-526.0,0.00020044,2]
[339258235,1727410243171,-526.0,0.00020044,2]
[339258236,1727410243180,-526.0,0.00020044,2]
[339258237,1727410243189,-526.0,0.00020044,2]
[339258238,1727410243198,-526.0,0.00020044,2]
[339258239,1727410243207,-526.0,0.00020044,2]
[339258240,1727410243216,-526.0,0.00020044,2]
[339258241,1727410243225,-526.0,0.00020044,2]
[339258242,1727410243235,-526.0,0.00020044,2]
[339258243,1727410243246,-526.0,0.00020044,2]
[339258244,1727410243255,-526.0,0.00020044,2]
[339258245,1727410243263,-153.0,0.00020044,2]
[339258246,1727410243273,-153.0,0.00020044,2]
[339258247,1727410243281,-153.0,0.00020044,2]
[339258248,1727410243290,-153.0,0.00020044,2]
[339258249,1727410243299,-526.0,0.00020046,2]
[339258250,1727410243309,-526.0,0.00020046,2]
[339258252,1727410243318,-526.0,0.00020046,2]
[339258254,1727410243327,-526.0,0.00020046,2]
[339258256,1727410243336,-526.0,0.00020046,2]
[339258258,1727410243344,-526.0,0.00020046,2]
[339258259,1727410243353,-526.0,0.00020046,2]
[339258260,1727410243362,-526.0,0.00020046,2]
[339258261,1727410243371,-526.0,0.00020046,2]
[339258262,1727410243379,-526.0,0.00020046,2]
[339258263,1727410243390,-526.0,0.00020046,2]
[339258264,1727410243399,-526.0,0.00020046,2]
[339258265,1727410243409,-526.0,0.00020046,2]
[339258266,1727410243418,-526.0,0.00020046,2]
[339258267,1727410243427,-153.0,0.00020046,2]
[339258268,1727410243436,-153.0,0.00020046,2]
[339258269,1727410243445,-153.0,0.00020046,2]
[339258270,1727410243455,-153.0,0.00020046,2]
[339258271,1727410243465,-526.0,0.00020048,2]
[339258272,1727410243474,-526.0,0.00020048,2]
[339258273,1727410243484,-526.0,0.00020048,2]
[339258274,1727410243493,-526.0,0.00020048,2]
[339258275,1727410243502,-526.0,0.00020048,2]
[339258276,1727410243511,-526.0,0.00020048,2]
[339258277,1727410243521,-526.0,0.00020048,2]
[339258278,1727410243529,-526.0,0.00020048,2]
[339258279,1727410243538,-526.0,0.00020048,2]
[339258280,1727410243548,-526.0,0.00020048,2]
[339258281,1727410243556,-526.0,0.00020048,2]
[339258282,1727410243567,-526.0,0.00020048,2]
[339258283,1727410243575,-526.0,0.00020048,2]
[339258284,1727410243585,-526.0,0.00020048,2]
[339258285,1727410243594,-153.0,0.00020048,2]
[339258286,1727410243603,-153.0,0.00020048,2]
[339258287,1727410243613,-153.0,0.00020048,2]
[339258288,1727410243623,-153.0,0.00020048,2]
[339258289,1727410243634,-526.0,0.0002005,2]
[339258290,1727410243644,-526.0,0.0002005,2]
[339258291,1727410243654,-526.0,0.0002005,2]
[339258292,1727410243665,-526.0,0.0002005,2]
[339258293,1727410243674,-526.0,0.0002005,2]
[339258294,1727410243683,-526.0,0.0002005,2]
[339258295,1727410243692,-526.0,0.0002005,2]
[339258296,1727410243701,-526.0,0.0002005,2]
[339258297,1727410243711,-526.0,0.0002005,2]
[339258298,1727410243720,-526.0,0.0002005,2]
[339258299,1727410243730,-526.0,0.0002005,2]
[339258300,1727410243740,-526.0,0.0002005,2]
[339258301,1727410243749,-152.667417,0.0002005,2]
[339258302,1727410243758,-151.0,0.0002005,2]
[339258303,1727410243767,-153.0,0.0002005,2]
[339258304,1727410243781,-153.0,0.0002005,2]
[339258305,1727410243791,-153.0,0.0002005,2]
[339258306,1727410243799,-153.0,0.0002005,2]
[339258307,1727410243808,-413.0,0.00020063,2]
[339258308,1727410243818,-413.0,0.00020063,2]
[339258309,1727410243827,-413.0,0.00020063,2]
[339258310,1727410243836,-413.0,0.00020063,2]
[339258311,1727410243845,-413.0,0.00020063,2]
[339258312,1727410243855,-413.0,0.00020063,2]
[339258313,1727410243864,-413.0,0.00020063,2]
[339258314,1727410243873,-413.0,0.00020063,2]
[339258315,1727410243883,-413.0,0.00020063,2]
[339258316,1727410243893,-413.0,0.00020063,2]
[339258317,1727410243904,-413.0,0.00020063,2]
[339258318,1727410243913,-413.0,0.00020063,2]
[339258319,1727410243924,-413.0,0.00020063,2]
[339258320,1727410243935,-413.0,0.00020063,2]
[339258321,1727410243946,-413.0,0.00020063,2]
[339258322,1727410243956,-168.62829801,0.00020182,2]
[339258323,1727410243965,-24682.4933482,0.00020253,3]
[339258324,1727410243974,-152.135856,0.00020253,2]
[339258325,1727410243983,-151.0,0.00020253,2]
[339258326,1727410243993,-151.0,0.00020253,2]
[339258327,1727410244002,-151.0,0.00020253,2]
[339258328,1727410244011,-151.0,0.00020253,2]
[339258329,1727410244020,-151.0,0.00020253,2]
[339258330,1727410244030,-151.0,0.00020253,2]
[339258331,1727410244039,-151.0,0.00020253,2]
[339258332,1727410244048,-151.0,0.00020257,2]
[339258333,1727410244057,-151.0,0.00020263,2]
[339258334,1727410244066,-151.0,0.00020263,2]
[339258335,1727410244076,-151.0,0.00020263,2]
[339258336,1727410244086,-152.85971,0.00020263,2]
[339258337,1727410244097,-500.0,0.00020273,2]
[339258338,1727410244107,-594.32,0.00020273,2]
[339258339,1727410244116,-1084.96,0.00020273,2]
[339258340,1727410244125,-1255.74,0.00020273,2]
[339258341,1727410244136,-560.47,0.00020273,2]
[339258342,1727410244155,-1060.62,0.00020273,2]
[339258343,1727410244164,-500.0,0.00020273,2]
[339258344,1727410244174,-1925.98,0.00020273,2]
[339258345,1727410244184,-200.0,0.00020273,2]
[339258346,1727410244195,-500.0,0.00020273,2]
[339258347,1727410244207,-1518.25,0.00020273,2]
[339258348,1727410244218,-500.0,0.00020273,2]
[339258349,1727410244228,-614.41819999,0.00020273,2]
[339258350,1727410244237,-2151.0,0.00020273,2]
[339258351,1727410244248,-544.16,0.00020273,2]
[339258352,1727410244258,-754.43,0.00020273,2]
[339258353,1727410244267,-19089.96,0.00020273,2]
[339258354,1727410244276,-3668.5,0.00020273,2]
[339258355,1727410244285,-164.243421,0.00020368,2]
[339258356,1727410244294,-251.237435,0.00020368,2]
[339258357,1727410244303,-159.654838,0.00020368,2]
[339258358,1727410244312,-150.112233,0.000204,4]
[339258359,1727410244322,-155.153887,0.000204,4]
[339258360,1727410244331,-476.24942552,0.00020473,2]
[339258361,1727410244340,-151.0,0.00020499,2]
[339258362,1727410244349,-150.112233,0.000205,2]
[339258363,1727410244359,-150.112233,0.000205,5]
[339258364,1727410244370,-55942.0,0.00020503,2]
[339258365,1727410244381,-24682.4933482,0.00020527,3]
[339258366,1727410244393,-313.44,0.00020528,3]
[339258367,1727410244403,-24682.4933482,0.00020537,3]
[339258368,1727410244413,-500.0,0.00020547,2]
[339258369,1727410244423,-594.32,0.00020547,2]
[339258370,1727410244434,-1084.96,0.00020547,2]
[339258371,1727410244444,-1255.74,0.00020547,2]
[339258372,1727410244455,-560.47,0.00020547,2]
[339258373,1727410244464,-1060.62,0.00020547,2]
[339258374,1727410244477,-435.00958,0.00020547,2]
[339258375,1727410244488,-435.00958,0.00020547,2]
[339258376,1727410244500,-151.0,0.00020547,2]
[339258377,1727410244510,-500.0,0.00020547,2]
[339258378,1727410244520,-1925.98,0.00020547,2]
[339258379,1727410244531,-200.0,0.00020547,2]
[339258380,1727410244541,-164.399626,0.00020547,2]
[339258381,1727410244551,-500.0,0.00020547,2]
[339258382,1727410244560,-164.399626,0.00020547,2]
[339258383,1727410244570,-1518.25,0.00020547,2]
[339258384,1727410244579,-151.0,0.00020547,2]
[339258385,1727410244591,-151.0,0.00020547,2]
[339258386,1727410244602,-500.0,0.00020547,2]
[339258387,1727410244614,-161.286996,0.00020547,2]
[339258388,1727410244623,-151.0,0.00020547,2]
[339258389,1727410244635,-151.0,0.00020547,2]
[339258390,1727410244645,-297.034865,0.00020547,2]
[339258391,1727410244654,-161.723042,0.00020547,2]
[339258392,1727410244664,-151.0,0.00020547,2]
[339258393,1727410244673,-161.723042,0.00020547,2]
[339258394,1727410244682,-528.53178,0.00020547,2]
[339258395,1727410244691,-528.53178,0.00020547,2]
[339258396,1727410244701,-151.0,0.00020547,2]
[339258397,1727410244710,-2151.0,0.00020547,2]
[339258398,1727410244719,-544.16,0.00020547,2]
[339258399,1727410244728,-754.43,0.00020547,2]
[339258400,1727410244738,-8214.04629422,0.00020547,2]
[339258401,1727410244910,-3601.2939011,0.00020547,2]
[339258405,1727410246385,-153.0,0.00020042,2]
[339258406,1727410246396,-153.0,0.00020042,2]
[339258407,1727410246406,-153.0,0.00020042,2]
[339258408,1727410246416,-153.0,0.00020042,2]
[339258409,1727410246426,-923.73885473,0.00020547,2]
[339258412,1727410246458,-91.02508385,0.00020547,2]
[339258414,1727410246471,-6259.8558661,0.00020547,2]
[339258416,1727410246481,-3668.5,0.00020547,2]
[339258418,1727410246490,-337.0,0.0002057,3]
[339258419,1727410246500,-500.27728893,0.00020573,2]